bitfinex/quotes_BTCUSD_20220111
["timestamp","ask_amount","ask_price","bid_price","bid_amount"]
[1641864356980,0.0007939,41746.0,41742.0,0.30585804]
[1641864357579,0.42543223,41749.0,41740.0,0.74877143]
[1641864357779,0.0007939,41746.0,41742.0,0.018]
[1641864357980,0.373734,41745.0,41742.0,0.018]
[1641864358182,0.43583274,41744.0,41742.0,0.018]
[1641864358379,0.623734,41743.0,41742.0,0.018]
[1641864358579,1.05815582,41743.0,41742.0,0.018]
[1641864359081,1.75019014,41743.0,41742.0,0.018]
[1641864359481,1.50019014,41743.0,41742.0,0.018]
[1641864359681,1.50019014,41743.0,41735.0,0.28157098]
[1641864359881,1.14545614,41743.0,41742.0,0.01]
[1641864360081,1.20631141,41743.0,41742.0,0.00729829]
[1641864360535,0.82715582,41743.0,41742.0,0.00729829]
[1641864360830,0.45342182,41743.0,41742.0,0.001889]
[1641864361028,0.43442182,41743.0,41741.0,0.31967652]
[1641864361233,0.059901,41746.0,41741.0,0.31967652]
[1641864361434,0.0007936,41745.0,41741.0,0.31967652]
[1641864361828,0.0007936,41745.0,41741.0,0.33167652]
[1641864362729,0.00800918,41745.0,41741.0,0.33167652]
[1641864362929,0.00800918,41745.0,41741.0,0.012]
[1641864363129,0.00800918,41745.0,41737.0,0.05989921]
[1641864363530,0.00721558,41745.0,41737.0,0.0504169]
[1641864363730,0.00079371,41743.0,41737.0,0.0764169]
[1641864363934,0.00079371,41743.0,41739.0,0.26835522]
[1641864364580,0.00079371,41743.0,41739.0,0.36835522]
[1641864364782,0.00721558,41745.0,41739.0,0.35478932]
[1641864364987,0.00079371,41743.0,41735.0,0.28157098]
[1641864365381,0.00079371,41743.0,41735.0,0.05]
[1641864365581,0.00079371,41743.0,41730.0,0.0012361]
[1641864365783,0.00079371,41743.0,41735.0,0.026]
[1641864365982,0.059916,41738.0,41735.0,0.026]
[1641864366183,0.126186,41738.0,41735.0,0.026]
[1641864366383,0.35640398,41737.0,41735.0,0.026]
[1641864366585,0.126186,41738.0,41735.0,0.026]
[1641864366783,0.48887819,41738.0,41735.0,0.026]
[1641864366985,0.48887819,41738.0,41731.0,0.6193834]
[1641864367782,0.48887819,41738.0,41731.0,0.6743834]
[1641864368833,0.126186,41738.0,41731.0,0.6743834]
[1641864369136,0.43630198,41742.0,41731.0,0.7193834]
[1641864369535,0.43550835,41742.0,41731.0,0.7193834]
[1641864369833,0.376394,41742.0,41733.0,6.135e-05]
[1641864370234,0.059911,41739.0,41733.0,6.135e-05]
[1641864370434,0.376394,41742.0,41733.0,6.135e-05]
[1641864370834,0.37560035,41742.0,41733.0,6.135e-05]
[1641864371035,0.37639399,41742.0,41733.0,0.05996588]
[1641864371434,0.37639399,41742.0,41733.0,0.10996588]
[1641864371637,0.37639399,41742.0,41733.0,0.15996588]
[1641864371882,0.37560035,41742.0,41733.0,0.18496588]
[1641864372081,0.37639401,41742.0,41733.0,0.18496588]
[1641864373082,0.37560035,41742.0,41733.0,0.15996588]
[1641864373283,0.37639401,41742.0,41733.0,0.15996588]
[1641864373686,0.059909,41741.0,41733.0,0.10006135]
[1641864373884,0.059909,41741.0,41733.0,0.12806135]
[1641864374083,0.059909,41741.0,41733.0,0.02806135]
[1641864374287,0.168369,41741.0,41733.0,0.02806135]
[1641864374485,0.25682326,41735.0,41733.0,0.02806135]
[1641864374783,0.373734,41740.0,41733.0,0.02806135]
[1641864374784,0.119839,41738.0,41733.0,0.02806135]
[1641864375185,0.373734,41737.0,41733.0,6.135e-05]
[1641864375385,0.40609932,41739.0,41733.0,6.135e-05]
[1641864375830,0.40609932,41739.0,41733.0,0.03006135]
[1641864376031,0.00125196,41740.0,41737.0,0.23983381]
[1641864376232,0.059913,41738.0,41737.0,0.23983381]
[1641864376932,0.059913,41738.0,41733.0,0.03006135]
[1641864377132,0.059913,41738.0,41733.0,6.135e-05]
[1641864377930,0.059913,41738.0,41734.0,0.27773152]
[1641864379885,0.00125196,41740.0,41734.0,0.30073152]
[1641864380086,0.00125196,41740.0,41734.0,0.40073152]
[1641864380286,0.059908,41741.0,41734.0,0.40073152]
[1641864381087,0.00079366,41742.0,41734.0,0.37773152]
[1641864381488,0.25501538,41743.0,41734.0,0.37773152]
[1641864381702,0.00079168,41742.0,41734.0,0.37773152]
[1641864381887,0.00079168,41742.0,41734.0,0.40173152]
[1641864382791,0.25501538,41743.0,41734.0,0.40173152]
[1641864383035,0.00079168,41742.0,41734.0,0.37773152]
[1641864383229,0.00079168,41742.0,41734.0,0.43763463]
[1641864383629,0.06069868,41742.0,41734.0,0.43763463]
[1641864383829,0.06069868,41742.0,41734.0,0.40173152]
[1641864384029,0.059907,41742.0,41734.0,0.40173152]
[1641864384229,0.06069868,41742.0,41734.0,0.40173152]
[1641864384632,0.12061668,41742.0,41734.0,0.024]
[1641864384831,0.059912,41739.0,41734.0,0.024]
[1641864385030,0.059912,41739.0,41733.0,6.135e-05]
[1641864385831,0.059912,41739.0,41733.0,0.02906135]
[1641864386633,0.059919,41737.0,41733.0,0.02906135]
[1641864386889,0.00079348,41742.0,41733.0,0.02906135]
[1641864387191,0.00079348,41742.0,41733.0,6.135e-05]
[1641864387588,0.3068,41744.0,41733.0,6.135e-05]
[1641864387789,0.3068,41744.0,41737.0,0.28498708]
[1641864387790,0.0007935,41742.0,41737.0,0.28498708]
[1641864387988,0.059911,41739.0,41737.0,0.28498708]
[1641864388189,0.373734,41738.0,41737.0,0.28498708]
[1641864388388,0.36574399,41738.0,41737.0,0.28498708]
[1641864388589,0.35710706,41738.0,41737.0,0.28498708]
[1641864388988,0.35710706,41738.0,41733.0,6.135e-05]
[1641864389190,0.059911,41739.0,41733.0,0.05006135]
[1641864389793,0.059911,41739.0,41733.0,0.07906135]
[1641864389991,0.059911,41739.0,41735.0,0.24712533]
[1641864390832,0.0607007,41742.0,41735.0,0.24712533]
[1641864391033,0.0607007,41742.0,41736.0,0.048]
[1641864391034,0.0007937,41742.0,41736.0,0.048]
[1641864391232,0.00721558,41745.0,41737.0,0.37778848]
[1641864391432,0.00079371,41742.0,41737.0,0.47578848]
[1641864391635,0.00079371,41742.0,41737.0,0.62578848]
[1641864391832,0.00079371,41742.0,41737.0,0.63978848]
[1641864392032,0.00079371,41742.0,41740.0,0.05989189]
[1641864392438,0.00721558,41745.0,41740.0,0.05989189]
[1641864392638,0.00079373,41742.0,41737.0,0.162]
[1641864392835,0.00079373,41742.0,41737.0,0.062]
[1641864393034,0.06070073,41742.0,41737.0,0.048]
[1641864393235,0.06070073,41742.0,41735.0,0.34712533]
[1641864393636,0.059907,41742.0,41735.0,0.34712533]
[1641864393835,0.06070067,41742.0,41735.0,0.26112533]
[1641864394287,0.059911,41739.0,41735.0,0.26112533]
[1641864394688,0.059911,41739.0,41737.0,2.45088589]
[1641864395287,0.06070064,41742.0,41737.0,2.45088589]
[1641864395886,0.059907,41742.0,41737.0,2.46388589]
[1641864396086,0.06070067,41742.0,41737.0,2.46388589]
[1641864397087,0.059907,41742.0,41737.0,2.45088589]
[1641864397289,0.06070069,41742.0,41737.0,2.45088589]
[1641864397889,0.06070069,41742.0,41737.0,2.46388589]
[1641864398132,0.06070069,41742.0,41737.0,0.013]
[1641864398332,0.373283,41741.0,41737.0,0.013]
[1641864399034,0.373283,41741.0,41735.0,0.29712533]
[1641864399231,0.06070069,41742.0,41735.0,0.29712533]
[1641864399631,0.059907,41742.0,41735.0,0.29712533]
[1641864399832,0.06070067,41742.0,41735.0,0.26112533]
[1641864400237,0.00079367,41742.0,41736.0,0.41172043]
[1641864400634,0.00079367,41742.0,41736.0,0.35182007]
[1641864400834,0.00721558,41745.0,41736.0,0.35182007]
[1641864401236,0.28673425,41744.0,41736.0,0.35182007]
[1641864401435,0.00079368,41742.0,41736.0,0.35182007]
[1641864401635,0.00079368,41742.0,41735.0,0.24712533]
[1641864401890,0.00079368,41742.0,41736.0,0.012]
[1641864402991,0.553024,41741.0,41736.0,0.012]
[1641864403193,0.65800349,41741.0,41733.0,6.135e-05]
[1641864403591,0.53817149,41741.0,41733.0,6.135e-05]
[1641864403793,0.54517149,41741.0,41733.0,6.135e-05]
[1641864403992,0.3166364,41737.0,41733.0,6.135e-05]
[1641864404192,0.32220009,41734.0,41733.0,6.135e-05]
[1641864404393,0.69548309,41734.0,41733.0,6.135e-05]
[1641864407851,0.69648309,41734.0,41733.0,6.135e-05]
[1641864409051,0.69548309,41734.0,41733.0,6.135e-05]
[1641864413338,0.76545309,41734.0,41733.0,6.135e-05]
[1641864413941,0.77545309,41734.0,41733.0,6.135e-05]
[1641864415039,0.76545309,41734.0,41733.0,6.135e-05]
[1641864415939,0.77545309,41734.0,41733.0,6.135e-05]
[1641864417190,0.76545309,41734.0,41733.0,6.135e-05]
[1641864417793,0.77545309,41734.0,41733.0,6.135e-05]
[1641864417994,0.383283,41734.0,41733.0,6.135e-05]
[1641864419196,0.059926,41735.0,41733.0,6.135e-05]
[1641864422744,0.33178927,41735.0,41733.0,6.135e-05]
[1641864422944,0.373283,41734.0,41733.0,6.135e-05]
[1641864425985,0.379283,41734.0,41733.0,6.135e-05]
[1641864426589,0.73399742,41734.0,41733.0,6.135e-05]
[1641864427189,1.10129042,41734.0,41733.0,6.135e-05]
[1641864427788,0.373283,41734.0,41733.0,6.135e-05]
[1641864428043,0.746576,41734.0,41733.0,6.135e-05]
[1641864428239,0.373283,41734.0,41733.0,6.135e-05]
[1641864428438,0.373283,41734.0,41733.0,0.04806135]
[1641864429036,0.373283,41734.0,41733.0,0.04934587]
[1641864429639,0.373283,41734.0,41733.0,0.42263887]
[1641864429837,0.373283,41734.0,41733.0,0.48963887]
[1641864430638,0.373283,41734.0,41733.0,0.84353153]
[1641864431238,0.373283,41734.0,41733.0,0.82653153]
[1641864431888,0.373283,41734.0,41733.0,0.85253153]
[1641864433089,0.373283,41734.0,41733.0,0.82653153]
[1641864433890,0.373283,41734.0,41733.0,0.85253153]
[1641864434095,0.37157074,41734.0,41733.0,0.85253153]
[1641864434292,0.37157074,41734.0,41733.0,1.22582453]
[1641864435192,0.37157074,41734.0,41733.0,0.84593187]
[1641864435393,0.37157074,41734.0,41733.0,1.17508834]
[1641864435639,0.37157074,41734.0,41733.0,1.12543513]
[1641864435835,0.37157074,41734.0,41733.0,0.81593187]
[1641864436334,0.37157074,41734.0,41733.0,0.86593187]
[1641864436535,0.37157074,41734.0,41733.0,1.19698296]
[1641864437137,0.37157074,41734.0,41733.0,1.17698296]
[1641864437338,0.37157074,41734.0,41733.0,1.23688196]
[1641864437740,0.00499516,41744.0,41734.0,1.35]
[1641864437938,0.10106724,41748.0,41743.0,0.60138269]
[1641864438137,1.0969,41749.0,41747.0,0.6001]
[1641864438338,1.0969,41749.0,41748.0,0.64934579]
[1641864438539,1.0969,41749.0,41748.0,0.99934579]
[1641864438737,1.09655469,41749.0,41748.0,1.74641734]
[1641864438937,1.09655469,41749.0,41748.0,1.79641734]
[1641864439993,1.09655469,41749.0,41748.0,0.66234579]
[1641864440197,1.48045852,41749.0,41748.0,0.6611]
[1641864441192,1.75242969,41749.0,41748.0,0.6481]
[1641864441995,1.75242969,41749.0,41748.0,0.6661]
[1641864442593,1.75080712,41749.0,41748.0,0.6661]
[1641864443235,1.75080712,41749.0,41748.0,0.6481]
[1641864443635,1.84507712,41749.0,41748.0,0.1702006]
[1641864444035,0.35,41748.0,41738.0,0.0012789]
[1641864444236,0.059902,41742.0,41739.0,0.048]
[1641864444435,0.38329046,41742.0,41738.0,0.048]
[1641864444639,0.37709005,41741.0,41738.0,0.048]
[1641864445237,0.059902,41742.0,41738.0,0.04925593]
[1641864445836,0.059902,41742.0,41738.0,0.24925593]
[1641864446036,0.059902,41742.0,41738.0,0.33525593]
[1641864446236,0.059902,41742.0,41738.0,0.43525593]
[1641864446437,0.44584578,41742.0,41738.0,0.23525593]
[1641864446638,0.33197353,41740.0,41738.0,0.234]
[1641864447297,0.33197353,41740.0,41738.0,0.098]
[1641864447895,0.179694,41741.0,41738.0,0.098]
[1641864448095,0.179694,41741.0,41738.0,0.116]
[1641864448696,0.00130417,41739.0,41738.0,0.116]
[1641864449097,0.00130417,41739.0,41738.0,0.098]
[1641864449297,0.00130417,41739.0,41738.0,0.298]
[1641864449498,0.11978,41746.0,41738.0,0.298]
[1641864449499,0.93517985,41750.0,41740.0,1.35]
[1641864449804,0.69522893,41773.0,41764.0,0.05]
[1641864449998,0.002,41780.0,41764.0,0.05]
[1641864449999,0.001,41783.0,41766.0,1.1]
[1641864450199,1.12780898,41798.0,41785.0,0.0012073]
[1641864450398,1.12780898,41798.0,41797.0,0.6001]
[1641864450645,1.12780898,41798.0,41797.0,2.01312188]
[1641864450646,0.00869173,41798.0,41797.0,2.01312188]
[1641864451046,0.00869173,41798.0,41797.0,2.16312188]
[1641864451243,0.1125,41800.0,41797.0,1.79687532]
[1641864451445,0.1125,41800.0,41799.0,0.00129978]
[1641864452044,0.1125,41800.0,41799.0,0.01329978]
[1641864452243,0.00018022,41799.0,41798.0,0.05980693]
[1641864452448,0.00018022,41799.0,41798.0,0.00128824]
[1641864452644,0.00018022,41799.0,41787.0,0.17940325]
[1641864452645,0.00018022,41799.0,41788.0,0.2]
[1641864452842,0.00018022,41799.0,41788.0,0.41646254]
[1641864453142,0.1125,41800.0,41788.0,0.41646254]
[1641864453143,0.1125,41800.0,41796.0,0.73655673]
[1641864453343,0.1125,41800.0,41796.0,0.41166605]
[1641864453545,0.1125,41800.0,41796.0,0.56166605]
[1641864453746,0.11295015,41800.0,41796.0,0.56166605]
[1641864454144,0.11295015,41800.0,41796.0,0.05981341]
[1641864454392,0.30581869,41799.0,41794.0,0.05]
[1641864454592,0.30081869,41799.0,41796.0,0.013]
[1641864454793,0.11295015,41800.0,41796.0,0.013]
[1641864454794,0.1125,41800.0,41796.0,0.013]
[1641864454996,0.00085771,41799.0,41796.0,0.013]
[1641864455195,1.722867,41798.0,41784.0,0.1]
[1641864455393,1.722867,41798.0,41764.0,0.05]
[1641864455394,0.076892,41794.0,41787.0,0.05]
[1641864455597,0.372867,41793.0,41787.0,0.05]
[1641864455793,0.107836,41792.0,41777.0,0.369668]
[1641864455994,0.107836,41792.0,41787.0,0.018]
[1641864456194,1.50145069,41791.0,41787.0,0.018]
[1641864456396,0.40538005,41790.0,41787.0,0.018]
[1641864456595,0.372867,41789.0,41777.0,0.05]
[1641864456895,0.048,41788.0,41777.0,0.05]
[1641864457097,0.059848,41785.0,41777.0,0.05]
[1641864457295,0.06070585,41785.0,41777.0,0.05]
[1641864457500,0.66870806,41784.0,41777.0,0.05]
[1641864457697,0.3735346,41780.0,41778.0,0.372867]
[1641864458140,0.00085785,41785.0,41780.0,0.05983712]
[1641864458339,0.048,41786.0,41781.0,0.372867]
[1641864459037,0.43952528,41786.0,41781.0,0.372867]
[1641864459238,0.43952528,41786.0,41780.0,0.05983712]
[1641864459239,0.43952528,41786.0,41780.0,0.25983712]
[1641864459537,0.43952528,41786.0,41781.0,0.422867]
[1641864459737,0.44029331,41786.0,41781.0,0.422867]
[1641864460539,0.44029331,41786.0,41781.0,0.05]
[1641864460739,0.43952528,41786.0,41781.0,0.05]
[1641864460937,0.44029331,41786.0,41780.0,0.20667212]
[1641864461138,0.44029331,41786.0,41780.0,0.11967212]
[1641864461337,0.44029331,41786.0,41780.0,0.16967212]
[1641864461787,0.44029331,41786.0,41780.0,0.10983712]
[1641864461989,0.49936828,41786.0,41780.0,0.037]
[1641864462190,0.00079645,41785.0,41780.0,0.037]
[1641864462992,0.00079645,41785.0,41780.0,0.09683861]
[1641864463191,0.43952528,41786.0,41782.0,0.31924164]
[1641864463392,0.00079645,41785.0,41782.0,0.37907464]
[1641864463592,0.00079645,41785.0,41783.0,0.372867]
[1641864464293,0.43952528,41786.0,41783.0,0.372867]
[1641864464492,0.44032172,41786.0,41782.0,0.091]
[1641864464895,0.88335849,41786.0,41782.0,0.041]
[1641864465094,0.88335849,41786.0,41780.0,0.04348695]
[1641864465095,0.372867,41785.0,41780.0,0.04348695]
[1641864465296,0.41331108,41785.0,41780.0,0.04348695]
[1641864465541,0.29944962,41783.0,41780.0,0.04348695]
[1641864465741,0.44835325,41782.0,41780.0,0.04348695]
[1641864465940,1.55881532,41781.0,41780.0,0.04348695]
[1641864466141,1.60523032,41781.0,41780.0,0.04348695]
[1641864466541,1.60523032,41781.0,41780.0,0.06621422]
[1641864466939,0.45523032,41781.0,41780.0,0.06621422]
[1641864467141,0.1440899,41781.0,41780.0,0.06621422]
[1641864467341,0.0976749,41781.0,41780.0,0.06621422]
[1641864467539,0.398,41781.0,41780.0,0.06621422]
[1641864467943,0.085,41781.0,41780.0,0.06621422]
[1641864468142,0.037,41781.0,41780.0,0.06621422]
[1641864468341,0.037,41781.0,41780.0,0.48918522]
[1641864469144,0.059856,41784.0,41780.0,0.11621422]
[1641864469388,0.00079046,41783.0,41780.0,0.11621422]
[1641864469990,0.00179046,41783.0,41780.0,0.11621422]
[1641864470189,0.00179046,41783.0,41782.0,0.09999999]
[1641864470387,0.001,41783.0,41782.0,0.09999999]
[1641864470591,0.001,41783.0,41782.0,0.47297099]
[1641864471189,0.00079045,41784.0,41782.0,0.47297099]
[1641864471389,0.00079045,41784.0,41782.0,0.372971]
[1641864471589,0.46383119,41787.0,41780.0,0.06621422]
[1641864471590,0.51312542,41787.0,41780.0,0.06621422]
[1641864471788,0.059844,41784.0,41780.0,0.06621422]
[1641864471993,0.046415,41783.0,41780.0,0.06621422]
[1641864472191,0.106267,41783.0,41780.0,0.06621422]
[1641864472393,0.156267,41783.0,41780.0,0.06621422]
[1641864472594,0.4403607,41782.0,41780.0,0.06621422]
[1641864472793,0.109852,41783.0,41780.0,0.26621422]
[1641864473044,0.05,41783.0,41780.0,0.26621422]
[1641864473439,0.06063362,41784.0,41780.0,0.26621422]
[1641864473835,0.06063362,41784.0,41780.0,0.66621422]
[1641864474037,0.059848,41783.0,41780.0,0.66621422]
[1641864475238,0.059844,41784.0,41780.0,0.66621422]
[1641864475438,0.06063362,41784.0,41781.0,0.372971]
[1641864475842,0.41383119,41787.0,41783.0,0.25527774]
[1641864476039,0.303,41784.0,41780.0,0.66621422]
[1641864476339,0.04552194,41783.0,41780.0,0.66621422]
[1641864477995,0.059849,41782.0,41780.0,0.66621422]
[1641864478194,0.04287053,41781.0,41780.0,0.66621422]
[1641864478396,0.04280925,41781.0,41780.0,0.66621422]
[1641864478795,0.0415641,41781.0,41780.0,0.66621422]
[1641864479196,0.0415641,41781.0,41780.0,1.03918522]
[1641864479399,0.0295641,41781.0,41780.0,1.03918522]
[1641864479599,0.059849,41782.0,41780.0,1.13918521]
[1641864479899,0.059849,41782.0,41781.0,0.372971]
[1641864480098,0.059849,41782.0,41781.0,0.367971]
[1641864480940,0.09540781,41782.0,41781.0,0.367971]
[1641864482238,0.059849,41782.0,41781.0,0.367971]
[1641864483442,0.059849,41782.0,41780.0,0.66621422]
[1641864484041,0.095849,41782.0,41780.0,0.67321422]
[1641864484301,0.095849,41782.0,41780.0,0.77321421]
[1641864484502,0.036,41782.0,41780.0,0.67321422]
[1641864484902,0.38487213,41782.0,41780.0,0.67321422]
[1641864485303,0.34887213,41782.0,41780.0,0.66621422]
[1641864485504,0.39887213,41782.0,41780.0,0.66621422]
[1641864485702,0.45871813,41782.0,41780.0,0.66621422]
[1641864486111,0.0008586,41786.0,41783.0,0.52523249]
[1641864486304,0.00343353,41797.0,41790.0,0.00127178]
[1641864486504,0.00343353,41797.0,41792.0,0.09999999]
[1641864486704,0.00343353,41797.0,41793.0,0.37298]
[1641864486904,0.00343353,41797.0,41792.0,0.09999999]
[1641864487105,0.1125,41800.0,41792.0,0.09999999]
[1641864487106,0.47980903,41796.0,41793.0,0.62449747]
[1641864487304,0.38862742,41798.0,41792.0,0.09999999]
[1641864487507,0.1125,41800.0,41793.0,0.37298]
[1641864488145,0.1125,41800.0,41794.0,0.05]
[1641864488344,0.35248373,41798.0,41795.0,0.37298]
[1641864488546,0.35248373,41798.0,41794.0,0.05]
[1641864489446,0.31112007,41796.0,41794.0,0.05]
[1641864489647,0.69184775,41795.0,41790.0,0.35]
[1641864489847,0.69184775,41795.0,41790.0,0.23761]
[1641864490047,0.059838,41794.0,41790.0,0.23761]
[1641864490248,0.051414,41793.0,41790.0,0.23761]
[1641864490448,0.69644009,41792.0,41790.0,0.23761]
[1641864490646,1.69787464,41791.0,41790.0,0.23761]
[1641864491995,1.69787464,41791.0,41790.0,0.24761]
[1641864493196,1.69787464,41791.0,41790.0,0.23761]
[1641864493697,1.3113455,41791.0,41790.0,0.23761]
[1641864493901,1.3113455,41791.0,41782.0,0.00082383]
[1641864493902,1.35,41790.0,41782.0,0.00082383]
[1641864494098,0.0012592,41788.0,41782.0,0.00082383]
[1641864494300,0.111261,41787.0,41782.0,0.00082383]
[1641864494497,0.059855,41786.0,41782.0,0.00082388]
[1641864494698,0.40792831,41785.0,41782.0,0.00082388]
[1641864494899,1.35814415,41784.0,41782.0,0.00082388]
[1641864495099,1.76085438,41783.0,41782.0,0.00082388]
[1641864495298,0.47257438,41783.0,41782.0,0.00082388]
[1641864495548,0.47257438,41783.0,41780.0,0.66621422]
[1641864495742,0.53243238,41783.0,41780.0,0.66703816]
[1641864496342,0.172992,41783.0,41780.0,0.66703816]
[1641864496545,0.109858,41783.0,41780.0,0.66703816]
[1641864496742,0.109858,41783.0,41780.0,0.66621422]
[1641864497442,0.42920165,41783.0,41780.0,0.66621422]
[1641864497641,0.37920165,41783.0,41780.0,0.66621422]
[1641864497843,0.059858,41783.0,41780.0,0.66621422]
[1641864498042,0.42805488,41784.0,41781.0,0.37298]
[1641864498243,0.0012592,41788.0,41782.0,0.09999999]
[1641864498244,0.00085856,41788.0,41782.0,0.09999999]
[1641864498444,0.00085856,41788.0,41786.0,0.09999999]
[1641864498642,0.00085856,41788.0,41783.0,0.37298]
[1641864498643,0.00085856,41788.0,41787.0,0.37298]
[1641864498843,0.00085856,41788.0,41783.0,0.27630761]
[1641864499044,0.00085856,41788.0,41784.0,0.37298]
[1641864499292,0.06454482,41799.0,41787.0,0.09999999]
[1641864499293,0.34293752,41799.0,41787.0,0.09999999]
[1641864499487,0.0008586,41788.0,41784.0,0.68923718]
[1641864499689,0.0008586,41788.0,41785.0,0.37298]
[1641864500088,0.0008586,41788.0,41786.0,0.92070574]
[1641864500286,0.0008586,41788.0,41787.0,0.37298]
[1641864500485,0.41266606,41793.0,41787.0,0.47297999]
[1641864500686,0.0008586,41789.0,41787.0,0.37298]
[1641864500986,0.0008586,41789.0,41787.0,0.47297999]
[1641864501185,0.0008586,41789.0,41787.0,0.96221719]
[1641864501587,0.55711861,41789.0,41787.0,0.58923719]
[1641864501790,1.69873779,41788.0,41785.0,0.58923719]
[1641864501989,1.59870796,41786.0,41785.0,0.58923719]
[1641864502191,0.45012196,41786.0,41785.0,0.58923719]
[1641864502490,0.059851,41784.0,41782.0,0.00082386]
[1641864502890,0.059851,41784.0,41781.0,0.58923719]
[1641864503143,0.059851,41784.0,41782.0,0.00082388]
[1641864503740,0.34679996,41783.0,41782.0,0.00082388]
[1641864503940,0.34679996,41783.0,41781.0,0.09999999]
[1641864504141,0.34679996,41783.0,41782.0,0.031]
[1641864504941,0.39679996,41783.0,41782.0,0.13099999]
[1641864505142,0.05,41783.0,41782.0,0.50397999]
[1641864505541,0.44870796,41786.0,41782.0,0.50397999]
[1641864505740,0.44870796,41786.0,41782.0,0.13099999]
[1641864505941,0.44870796,41786.0,41782.0,0.09999999]
[1641864506141,0.44870796,41786.0,41782.0,0.11299999]
[1641864506643,0.44870796,41786.0,41782.0,0.11382389]
[1641864506895,0.3657257,41787.0,41782.0,0.11382389]
[1641864507091,0.00085859,41788.0,41783.0,0.37298]
[1641864507292,0.00085859,41788.0,41784.0,0.05]
[1641864507692,0.55581296,41790.0,41785.0,0.37298]
[1641864507893,0.0008586,41788.0,41784.0,0.05]
[1641864508094,0.059845,41787.0,41785.0,0.32771897]
[1641864508294,0.059845,41787.0,41784.0,0.055]
[1641864509296,0.059845,41787.0,41784.0,0.05]
[1641864510099,0.059845,41787.0,41784.0,0.056]
[1641864510844,0.109845,41787.0,41784.0,0.056]
[1641864511344,0.109845,41787.0,41784.0,0.05]
[1641864512249,0.109845,41787.0,41784.0,0.056]
[1641864512647,0.0008586,41788.0,41786.0,0.09999999]
[1641864512849,0.0008586,41788.0,41787.0,0.42098]
[1641864513648,1.24400615,41796.0,41787.0,0.71744409]
[1641864513848,0.00085859,41790.0,41787.0,0.048]
[1641864514050,0.00085859,41790.0,41787.0,0.058]
[1641864514691,0.0392801,41790.0,41787.0,0.058]
[1641864514894,0.72150534,41788.0,41787.0,0.058]
[1641864515093,0.72150534,41788.0,41787.0,0.15799999]
[1641864515292,0.72150534,41788.0,41787.0,0.14799999]
[1641864515492,0.03842151,41790.0,41787.0,0.14799999]
[1641864515692,0.00085858,41791.0,41787.0,0.14799999]
[1641864515892,0.00085858,41791.0,41790.0,0.09999999]
[1641864516094,0.27659835,41792.0,41790.0,0.09999999]
[1641864516293,0.00085858,41791.0,41790.0,0.09999999]
[1641864516494,0.00085858,41791.0,41790.0,0.81206081]
[1641864517294,0.059831,41799.0,41790.0,0.81206081]
[1641864517497,0.059831,41799.0,41789.0,0.6932229]
[1641864517498,0.00085856,41793.0,41789.0,0.31730159]
[1641864517695,0.00085856,41793.0,41792.0,0.09999999]
[1641864517895,0.00085856,41793.0,41792.0,0.47297999]
[1641864518349,0.84549547,41800.0,41792.0,0.47297999]
[1641864518547,0.06069254,41795.0,41792.0,0.09999999]
[1641864519549,1.29657466,41793.0,41792.0,0.09999999]
[1641864519749,1.34798866,41793.0,41792.0,0.09999999]
[1641864520154,0.34798866,41793.0,41792.0,0.10799999]
[1641864520549,0.29657466,41793.0,41792.0,0.41281122]
[1641864520750,0.05,41794.0,41792.0,0.41281122]
[1641864520952,0.059834,41795.0,41792.0,0.41281122]
[1641864520953,0.05085854,41795.0,41792.0,0.41281122]
[1641864521151,0.00085854,41795.0,41793.0,0.37298]
[1641864521991,0.51701596,41796.0,41792.0,0.09999999]
[1641864522191,0.51787449,41796.0,41795.0,0.09999999]
[1641864522391,0.50945649,41796.0,41795.0,0.09999999]
[1641864522794,0.75945649,41796.0,41795.0,0.09999999]
[1641864523191,0.50859796,41796.0,41795.0,0.09999999]
[1641864523992,0.50859796,41796.0,41795.0,0.10499999]
[1641864525398,0.50859796,41796.0,41795.0,0.09999999]
[1641864526049,0.50859796,41796.0,41795.0,0.10499999]
[1641864527148,0.46359796,41796.0,41795.0,0.10499999]
[1641864527349,0.41218396,41796.0,41795.0,0.09999999]
[1641864528150,0.41218396,41796.0,41795.0,0.10499999]
[1641864528956,0.00343353,41804.0,41797.0,0.8]
[1641864529152,0.09831666,41813.0,41803.0,0.1012845]
[1641864529395,0.0155028,41814.0,41813.0,0.29124886]
[1641864529596,0.0155028,41814.0,41812.0,0.09999999]
[1641864529597,0.0155028,41814.0,41812.0,0.14799999]
[1641864529993,0.0155028,41814.0,41812.0,0.15199999]
[1641864530393,0.34817988,41813.0,41812.0,0.15199999]
[1641864531395,0.34817988,41813.0,41812.0,0.14799999]
[1641864531396,0.63259114,41813.0,41812.0,0.14799999]
[1641864531599,1.07172486,41813.0,41812.0,0.048]
[1641864531796,1.07172486,41813.0,41812.0,0.14799999]
[1641864531995,1.07172486,41813.0,41812.0,0.15199999]
[1641864532196,0.7873136,41813.0,41812.0,0.15199999]
[1641864532397,0.7873136,41813.0,41812.0,0.10399999]
[1641864532596,0.34817988,41813.0,41812.0,0.10399999]
[1641864533450,0.34817988,41813.0,41812.0,0.09999999]
[1641864533651,0.64863172,41813.0,41812.0,0.09999999]
[1641864534051,0.64863172,41813.0,41812.0,0.10499999]
[1641864534252,0.64782172,41813.0,41812.0,0.10499999]
[1641864535251,0.64782172,41813.0,41812.0,0.09999999]
[1641864536153,0.69923572,41813.0,41812.0,0.10499999]
[1641864536793,1.11646505,41813.0,41812.0,0.005]
[1641864536993,1.16099837,41813.0,41812.0,0.005]
[1641864537194,1.12303086,41813.0,41812.0,0.005]
[1641864537495,0.119644,41809.0,41802.0,0.00076334]
[1641864537695,0.49539377,41808.0,41803.0,0.05]
[1641864537895,0.3168005,41806.0,41804.0,0.09999999]
[1641864538094,0.87334933,41805.0,41804.0,0.09999999]
[1641864538697,0.37334933,41805.0,41804.0,0.09999999]
[1641864539896,0.37334933,41805.0,41803.0,0.05]
[1641864540095,0.37334933,41805.0,41804.0,0.10499999]
[1641864540298,0.37334933,41805.0,41804.0,0.005]
[1641864540742,0.42476333,41805.0,41804.0,0.005]
[1641864541348,0.42476333,41805.0,41802.0,0.00079381]
[1641864541545,0.09497637,41804.0,41802.0,0.00079381]
[1641864541743,0.41257661,41805.0,41802.0,0.00079381]
[1641864541945,0.09539026,41804.0,41802.0,0.00079381]
[1641864542143,1.66090472,41803.0,41802.0,0.00379381]
[1641864542343,1.73906495,41803.0,41802.0,0.003]
[1641864542742,1.8316356,41803.0,41802.0,0.003]
[1641864542942,1.35,41802.0,41801.0,0.00078436]